bitfinex-derivatives/quotes_BTCF0:USTF0_20250322
["timestamp","ask_amount","ask_price","bid_price","bid_amount"]
[1742677880193,0.27856814,84088.0,84087.0,0.1216658]
[1742677880388,0.15962374,84088.0,84087.0,0.1199458]
[1742677880588,0.15962374,84088.0,84087.0,0.1216658]
[1742677881482,0.19172374,84088.0,84087.0,0.1216658]
[1742677881884,0.19172374,84088.0,84087.0,0.1543658]
[1742677882690,0.19172374,84088.0,84087.0,0.1216658]
[1742677883382,0.19172374,84088.0,84087.0,0.1543658]
[1742677883786,0.19172374,84088.0,84087.0,0.5151658]
[1742677883995,0.12632374,84088.0,84087.0,0.6586858]
[1742677884294,0.27004416,84090.0,84089.0,0.118943]
[1742677884487,0.27004416,84090.0,84089.0,0.120663]
[1742677885093,0.27004416,84090.0,84089.0,0.13350843]
[1742677885485,0.27604416,84090.0,84089.0,0.13450843]
[1742677888082,0.006,84090.0,84089.0,0.13450843]
[1742677889392,0.1,84100.0,84099.0,0.1189288]
[1742677889600,0.1,84100.0,84099.0,0.2342488]
[1742677890891,0.101,84100.0,84099.0,0.2342488]
[1742677891486,0.21990677,84100.0,84099.0,0.2342488]
[1742677892199,0.21990677,84100.0,84099.0,0.2977488]
[1742677892394,0.1,84100.0,84099.0,0.1842688]
[1742677892596,0.1,84100.0,84099.0,0.2977488]
[1742677892805,0.21890677,84100.0,84099.0,0.2977488]
[1742677894803,0.21890677,84100.0,84099.0,0.1842688]
[1742677894999,0.21890677,84100.0,84099.0,0.2977488]
[1742677895803,0.21890677,84100.0,84099.0,0.1842688]
[1742677896005,0.21890677,84100.0,84099.0,0.2977488]
[1742677897504,0.1,84100.0,84099.0,0.2977488]
[1742677899598,0.1,84100.0,84099.0,0.6585488]
[1742677901007,0.0004,84104.0,84103.0,0.1189232]
[1742677901301,0.0004,84104.0,84103.0,0.1206432]
[1742677901697,0.11930677,84104.0,84103.0,0.1206432]
[1742677901898,0.11930677,84104.0,84103.0,0.1530432]
[1742677903611,0.23822857,84104.0,84103.0,0.1152]
[1742677903804,0.11930677,84104.0,84103.0,0.1152]
[1742677904193,0.11930677,84104.0,84103.0,0.1462]
[1742677904406,0.18330677,84104.0,84103.0,0.1516432]
[1742677904596,0.45222857,84104.0,84103.0,0.00172]
[1742677904797,0.1189309,84098.0,84097.0,0.1189317]
[1742677904997,0.1189309,84098.0,84097.0,0.1536517]
[1742677905410,0.0952,84099.0,84098.0,0.1189302]
[1742677905703,0.0633,84099.0,84098.0,0.1536502]
[1742677906107,0.18220818,84099.0,84098.0,0.1536502]
[1742677906495,0.11890818,84099.0,84098.0,0.1536502]
[1742677907012,0.0326,84103.0,84102.0,0.1189246]
[1742677907310,0.15150818,84103.0,84102.0,0.1206446]
[1742677907508,0.0004,84104.0,84103.0,0.1189232]
[1742677907700,0.0004,84104.0,84103.0,0.1851432]
[1742677907904,0.0004,84104.0,84103.0,0.2166432]
[1742677908209,0.11930252,84104.0,84103.0,0.2166432]
[1742677908807,1e-07,84104.0,84103.0,0.5774432]
[1742677913514,1e-07,84104.0,84103.0,1.08231135]
[1742677915810,1e-07,84104.0,84103.0,1.19575135]
[1742677917012,0.0004,84120.0,84119.0,0.1189006]
[1742677917214,0.0004,84120.0,84119.0,0.2341406]
[1742677917924,0.0004,84120.0,84119.0,0.2975406]
[1742677918822,0.1192785,84120.0,84119.0,0.2975406]
[1742677919219,0.1192785,84120.0,84119.0,0.1539006]
[1742677919612,0.1513785,84120.0,84119.0,0.1539006]
[1742677920920,0.2702776,84120.0,84119.0,0.0018]
[1742677921221,0.1189092,84113.0,84112.0,0.1189091]
[1742677921413,0.48090901,84113.0,84112.0,0.00128]
[1742677921614,0.1189105,84112.0,84109.0,0.0594566]
[1742677921916,0.1841905,84112.0,84111.0,0.11917023]
[1742677922225,0.1841905,84112.0,84111.0,0.12037023]
[1742677922522,0.30307889,84112.0,84111.0,0.12029023]
[1742677924422,0.30307889,84112.0,84111.0,0.00137833]
[1742677924925,0.30307889,84112.0,84111.0,0.00017833]
[1742677925823,0.33416839,84112.0,84109.0,8e-05]
[1742677926128,0.1189302,84098.0,84097.0,0.1507308]
[1742677926323,0.1189302,84098.0,84097.0,0.1519308]
[1742677926524,0.1189302,84098.0,84094.0,0.24577045]
[1742677926525,0.1189345,84095.0,84094.0,0.21357045]
[1742677926720,0.4805745,84095.0,84094.0,0.21441045]
[1742677927523,0.59948409,84095.0,84094.0,0.21441045]
[1742677928326,0.59948409,84095.0,84094.0,0.00084]
[1742677928631,0.1189387,84092.0,84091.0,8e-05]
[1742677928832,0.1197787,84092.0,84091.0,0.00092]
[1742677929034,0.1197787,84092.0,84091.0,0.03422]
[1742677929217,0.1197787,84092.0,84091.0,0.03338]
[1742677929422,0.23869254,84092.0,84091.0,0.03338]
[1742677929624,0.23869254,84092.0,84091.0,0.03422]
[1742677929933,0.23869254,84092.0,84091.0,0.03338]
[1742677930431,0.23869254,84092.0,84091.0,0.03434]
[1742677931231,0.23869254,84092.0,84091.0,0.1523201]
[1742677931232,0.11975384,84092.0,84091.0,0.1523201]
[1742677931432,0.11975384,84092.0,84091.0,0.1531601]
[1742677931617,0.11891384,84092.0,84091.0,0.1834601]
[1742677932022,0.0313,84099.0,84098.0,0.1189302]
[1742677932223,0.15082881,84099.0,84098.0,0.1197702]
[1742677932739,0.26974689,84099.0,84098.0,0.1197702]
[1742677932924,0.15081809,84099.0,84098.0,0.1835702]
[1742677933124,0.26974689,84099.0,84098.0,0.1835702]
[1742677933520,0.15081809,84099.0,84098.0,0.1835702]
[1742677933725,0.26974689,84099.0,84098.0,0.1835702]
[1742677935235,0.15081809,84099.0,84098.0,0.1835702]
[1742677935638,0.18151809,84099.0,84098.0,0.1835702]
[1742677935837,0.30044689,84099.0,84098.0,0.1835702]
[1742677936630,0.30044689,84099.0,84098.0,0.06464]
[1742677936830,0.30044689,84099.0,84098.0,0.1835702]
[1742677937839,0.18151809,84099.0,84098.0,0.1835702]
[1742677938337,0.30044689,84099.0,84098.0,0.1835702]
[1742677938835,0.11951809,84099.0,84098.0,0.1835702]
[1742677967447,0.00060001,84099.0,84098.0,0.1835702]
[1742677967648,0.00017723,84103.0,84102.0,0.1189246]
[1742677967849,0.00105724,84103.0,84102.0,0.2332446]
[1742677968152,0.00101723,84103.0,84102.0,0.2663446]
[1742677968353,0.11992541,84103.0,84102.0,0.2994446]
[1742677969453,0.11908541,84103.0,84102.0,0.2994446]
[1742677972769,0.0004,84120.0,84102.0,0.18052]
[1742677972959,0.00132,84120.0,84119.0,0.1189006]
[1742677973160,0.00132,84120.0,84119.0,0.2332206]
[1742677973353,0.06522,84120.0,84119.0,0.2332206]
[1742677973662,0.18412252,84120.0,84119.0,0.2332206]
[1742677976553,0.18412252,84120.0,84119.0,0.2952206]
[1742677991767,0.18412252,84120.0,84119.0,0.1817806]
[1742678013391,0.30302162,84120.0,84119.0,0.1817806]
[1742678014591,0.18412252,84120.0,84119.0,0.1817806]
[1742678014985,0.30302162,84120.0,84119.0,0.1817806]
[1742678015594,0.30302162,84120.0,84119.0,0.06288]
[1742678016300,0.33392162,84120.0,84119.0,0.06288]
[1742678016995,0.33392162,84120.0,84119.0,0.1817806]
[1742678018692,0.30302162,84120.0,84119.0,0.1817806]
[1742678019800,0.30302162,84120.0,84119.0,0.06288]
[1742678020997,0.30302162,84120.0,84119.0,0.1817806]
[1742678025200,0.30302162,84120.0,84119.0,0.00088]
[1742678025489,0.1189048,84116.0,84115.0,0.0325]
[1742678025693,0.4797017,84119.0,84118.0,0.1189016]
[1742678025896,0.4904071,84119.0,84118.0,0.08264716]
[1742678026095,0.5526071,84119.0,84118.0,0.08264716]
[1742678026287,0.68078103,84119.0,84118.0,0.1198216]
[1742678026888,0.68078103,84119.0,84118.0,0.1504216]
[1742678029208,0.68064178,84119.0,84118.0,0.1504216]
[1742678030911,0.68061481,84119.0,84118.0,0.1504216]
[1742678031799,0.68061481,84119.0,84118.0,0.03152]
[1742678031999,0.68061481,84119.0,84118.0,0.03068]
[1742678032911,0.68061593,84119.0,84118.0,0.03068]
[1742678035910,0.68061593,84119.0,84115.0,0.1189059]
[1742678036208,0.1189048,84116.0,84115.0,0.11241145]
[1742678036403,0.13849912,84116.0,84115.0,0.11241145]
[1742678036715,0.13835131,84116.0,84115.0,0.11241145]
[1742678036915,0.25723122,84116.0,84115.0,0.11325145]
[1742678037108,0.28903122,84116.0,84115.0,0.11325145]
[1742678037314,0.28903122,84116.0,84115.0,0.11241145]
[1742678038216,0.27949351,84116.0,84115.0,0.11241145]
[1742678039335,0.27949351,84116.0,84115.0,0.14421145]
[1742678039523,0.27949351,84116.0,84115.0,0.14505145]
[1742678040323,0.16058871,84116.0,84115.0,0.14505145]
[1742678042133,0.15135991,84116.0,84115.0,0.14505145]
[1742678042335,0.16046736,84116.0,84115.0,0.14505145]
[1742678043126,0.16046736,84116.0,84115.0,0.17805145]
[1742678043728,0.27937216,84116.0,84115.0,0.17805145]
[1742678044729,0.16046736,84116.0,84115.0,0.17805145]
[1742678044928,0.27937216,84116.0,84115.0,0.17805145]
[1742678045329,0.16046736,84116.0,84115.0,0.17805145]
[1742678046127,0.27937216,84116.0,84115.0,0.17805145]
[1742678046930,0.16046736,84116.0,84115.0,0.17805145]
[1742678047531,0.15978736,84116.0,84115.0,0.17805145]
[1742678047739,0.16062736,84116.0,84115.0,0.17805145]
[1742678049425,0.12882736,84116.0,84115.0,0.17805145]
[1742678049627,0.00696912,84116.0,84115.0,0.17805145]
[1742678053740,0.0004,84120.0,84119.0,0.1189006]
[1742678053937,0.0004,84120.0,84119.0,0.5956206]
[1742678054539,0.0004,84120.0,84119.0,0.6567206]
[1742678068150,0.0004,84120.0,84119.0,1.0175206]
[1742678069560,0.03023014,84131.0,84130.0,0.118885]
[1742678069755,0.03107014,84131.0,84130.0,0.234285]
[1742678069955,0.03023014,84131.0,84130.0,0.266185]
[1742678073059,0.03023014,84131.0,84130.0,0.234285]
[1742678073455,0.03107014,84131.0,84130.0,0.234285]
[1742678074254,0.03107014,84131.0,84130.0,0.24332687]
[1742678074564,0.03107014,84131.0,84130.0,0.25578603]
[1742678074955,0.03107014,84131.0,84130.0,0.24332687]
[1742678078258,0.03107014,84131.0,84130.0,0.234285]
[1742678078458,0.14993309,84131.0,84130.0,0.234285]
[1742678081871,0.26881669,84131.0,84130.0,0.00084]
[1742678082163,0.118885,84130.0,84129.0,8e-05]
[1742678082372,0.151165,84130.0,84129.0,8e-05]
[1742678082567,0.181265,84130.0,84129.0,8e-05]
[1742678082866,0.30012795,84130.0,84128.0,8e-05]
[1742678083068,0.27002795,84130.0,84128.0,8e-05]
[1742678083968,0.27002795,84130.0,84129.0,0.1188864]
[1742678084169,0.27002795,84130.0,84129.0,0.00088]
[1742678084673,0.15114295,84130.0,84129.0,0.1197664]
[1742678085069,0.27002795,84130.0,84129.0,0.1197664]
[1742678085863,0.27002795,84130.0,84129.0,0.00088]
[1742678086065,0.1188864,84129.0,84128.0,0.1189678]
[1742678086258,0.1197264,84129.0,84128.0,0.00092]
[1742678086464,0.1500264,84129.0,84128.0,0.00092]
[1742678086663,0.26889076,84129.0,84128.0,8e-05]
[1742678086971,0.26889076,84129.0,84128.0,0.1189678]
[1742678087272,0.26889076,84129.0,84128.0,0.1198878]
[1742678087973,0.26889076,84129.0,84128.0,0.001]
[1742678088470,0.26889076,84129.0,84128.0,0.1198878]
[1742678089972,0.62969076,84129.0,84128.0,0.1198878]
[1742678090284,0.62969076,84129.0,84128.0,0.001]
[1742678090573,0.62969076,84129.0,84128.0,8e-05]
[1742678090787,0.62969076,84129.0,84128.0,0.00092]
[1742678091759,0.62969076,84129.0,84128.0,8e-05]
[1742678091962,0.62969076,84129.0,84128.0,0.00092]
[1742678092165,0.62969076,84129.0,84128.0,0.1198078]
[1742678092776,0.62969076,84129.0,84128.0,0.00092]
[1742678093969,0.62969076,84129.0,84128.0,0.03222]
[1742678094275,0.62969076,84129.0,84128.0,0.03138]
[1742678094478,0.62969076,84129.0,84128.0,0.0323]
[1742678094778,0.62969076,84129.0,84128.0,0.001]
[1742678095371,0.62969076,84129.0,84128.0,0.0323]
[1742678095571,0.62969076,84129.0,84128.0,0.1511878]
[1742678095771,0.62969076,84129.0,84128.0,0.1511078]
[1742678095973,0.62969076,84129.0,84128.0,0.03222]
[1742678096177,0.62969076,84129.0,84128.0,0.03138]
[1742678096373,0.62969076,84129.0,84128.0,0.03226]
[1742678096575,0.62969076,84129.0,84128.0,0.03138]
[1742678097369,0.62969076,84129.0,84128.0,0.03222]
[1742678097569,0.66209076,84129.0,84128.0,0.03222]
[1742678099481,0.66209076,84129.0,84128.0,0.00092]
[1742678099673,0.66209076,84129.0,84128.0,8e-05]
[1742678100571,0.1188963,84122.0,84121.0,0.031]
[1742678100775,0.23409631,84122.0,84121.0,0.03188]
[1742678100978,0.24318877,84122.0,84121.0,0.03188]
[1742678101368,0.37415901,84122.0,84121.0,0.1507777]
[1742678101683,0.43795901,84122.0,84121.0,0.1507777]
[1742678101885,0.43795901,84122.0,84121.0,0.1815777]
[1742678103586,0.32363901,84122.0,84121.0,0.1815777]
[1742678103775,0.29243901,84122.0,84121.0,0.1815777]
[1742678104090,0.28334655,84122.0,84121.0,0.1815777]
[1742678104979,0.31464655,84122.0,84121.0,0.1815777]
[1742678105281,0.28334655,84122.0,84121.0,0.1815777]
[1742678105985,0.31464655,84122.0,84121.0,0.1815777]
[1742678107879,0.67544655,84122.0,84121.0,0.1815777]
[1742678132205,0.31464655,84122.0,84121.0,0.1815777]
[1742678132428,0.67544655,84122.0,84121.0,0.1815777]
[1742678134510,0.67544655,84122.0,84121.0,0.2146777]
[1742678135598,0.31464655,84122.0,84121.0,0.2146777]
[1742678135904,0.67544655,84122.0,84121.0,0.2146777]
[1742678140412,0.55655025,84122.0,84121.0,0.2146777]
[1742678144106,0.67544655,84122.0,84121.0,0.2146777]
[1742678144813,0.55655025,84122.0,84121.0,0.2146777]
[1742678146115,0.67544655,84122.0,84121.0,0.2146777]
[1742678149608,0.67544655,84122.0,84121.0,0.09578]
[1742678150112,0.67544655,84122.0,84121.0,0.0949]
[1742678150618,0.67544655,84122.0,84121.0,0.2137977]
[1742678150815,0.67544655,84122.0,84121.0,0.2146377]
[1742678152020,0.31464655,84122.0,84121.0,0.2146377]
[1742678152316,0.67544655,84122.0,84121.0,0.2146377]
[1742678158624,0.31464655,84122.0,84121.0,0.2146377]
[1742678158808,0.67544655,84122.0,84121.0,0.2146377]
[1742678159207,0.31464655,84122.0,84121.0,0.2146377]
[1742678159419,0.67544655,84122.0,84121.0,0.2146377]
[1742678160625,0.55655025,84122.0,84121.0,0.2146377]
[1742678163620,0.67544655,84122.0,84121.0,0.2146377]
[1742678167434,0.52525025,84122.0,84121.0,0.2146377]
[1742678168318,1.05243025,84122.0,84100.0,0.28472253]
[1742678168628,0.4797105,84112.0,84100.0,0.28472253]
[1742678168816,0.5938705,84112.0,84105.0,0.2744797]
[1742678169013,0.5938705,84112.0,84111.0,0.00077833]
[1742678169418,0.74574617,84112.0,84111.0,0.00077833]
[1742678171534,0.77884617,84112.0,84111.0,0.00077833]
[1742678172622,0.77884617,84112.0,84111.0,0.00017833]
[1742678172833,0.77884617,84112.0,84111.0,0.00081833]
[1742678174531,0.77884617,84112.0,84111.0,0.00017833]
[1742678176635,0.77884617,84112.0,84111.0,0.00077833]
[1742678176834,0.77884617,84112.0,84111.0,0.00017833]
[1742678177838,0.77884617,84112.0,84111.0,0.03327833]
[1742678178538,0.77884617,84112.0,84111.0,0.03387833]
[1742678178740,0.77884617,84112.0,84111.0,0.03327833]
[1742678179037,0.77884617,84112.0,84111.0,0.03387833]
[1742678180124,0.77884617,84112.0,84111.0,0.03327833]
[1742678181824,0.41804617,84112.0,84111.0,0.03327833]
[1742678182237,0.41804617,84112.0,84111.0,0.03387833]
[1742678190839,0.11955567,84112.0,84111.0,0.15279023]
[1742678191043,0.11955567,84112.0,84111.0,0.15219023]
[1742678191245,0.11955567,84112.0,84111.0,0.18279023]
[1742678191442,0.11955567,84112.0,84111.0,0.18339023]
[1742678192643,0.00068,84112.0,84111.0,0.18339023]
[1742678192940,0.1136,84127.0,84126.0,0.1188907]
[1742678193347,0.11420001,84127.0,84126.0,0.1196907]
[1742678193741,0.23308981,84127.0,84126.0,0.1196907]
[1742678193943,0.11948981,84127.0,84126.0,0.1196907]
[1742678198345,0.23837901,84127.0,84126.0,0.0008]
[1742678198646,0.0594464,84125.0,84111.0,0.03307833]
[1742678198841,0.1189105,84112.0,84111.0,0.03307833]
[1742678199040,0.1195905,84112.0,84111.0,0.00017833]
[1742678199242,0.1836905,84112.0,84111.0,0.00017833]
[1742678199447,0.3025591,84112.0,84111.0,0.00101833]
[1742678200150,0.01204855,84127.0,84111.0,0.00101833]
[1742678200353,0.00108,84127.0,84126.0,0.4796907]
[1742678200536,0.0311,84139.0,84135.0,0.1188779]
[1742678200848,0.00144001,84136.0,84135.0,0.3618]
[1742678201042,0.0004,84136.0,84135.0,0.3618]
[1742678201238,0.1202792,84136.0,84135.0,0.3618]
[1742678201643,0.1202792,84136.0,84135.0,0.4806779]
[1742678203345,0.1508792,84136.0,84135.0,0.4806779]
[1742678207644,0.1508792,84136.0,84135.0,0.5115779]
[1742678207846,0.1508792,84136.0,84135.0,0.3927]
[1742678208549,0.1508792,84136.0,84135.0,0.0628]
[1742678208755,0.1508792,84136.0,84135.0,0.4236]
[1742678212057,0.1508792,84136.0,84135.0,0.5424779]
[1742678212253,0.1508792,84136.0,84135.0,0.1816779]
[1742678212454,0.1508792,84136.0,84135.0,0.5424779]
[1742678213055,0.1508792,84136.0,84135.0,0.4236]
[1742678213361,0.1508792,84136.0,84135.0,0.3927]
[1742678213946,0.1508792,84136.0,84135.0,0.3618]
[1742678214150,0.1508792,84136.0,84118.0,0.3608]
[1742678214151,0.5116792,84136.0,84118.0,0.3608]
[1742678214458,0.1189006,84119.0,84118.0,0.00076]
[1742678214663,0.118909,84113.0,84112.0,0.0302]
[1742678214965,0.119629,84113.0,84112.0,0.03092]
[1742678215159,0.2384969,84113.0,84112.0,0.1498305]
[1742678215555,0.3012969,84113.0,84112.0,0.1498305]
[1742678217763,0.3012969,84113.0,84112.0,0.03092]
[1742678217965,0.3012969,84113.0,84112.0,0.39172]
[1742678226169,0.3012969,84113.0,84112.0,0.03092]
[1742678227372,0.3012969,84113.0,84112.0,0.0302]
[1742678227575,0.3012969,84113.0,84112.0,0.03088]
[1742678233576,0.4153769,84113.0,84112.0,0.03088]
[1742678235370,0.4153769,84113.0,84112.0,0.0302]
[1742678243288,0.3012969,84113.0,84112.0,0.0302]
[1742678243488,0.4151369,84113.0,84112.0,0.0302]
[1742678247786,0.4151369,84113.0,84112.0,0.0605]
[1742678253488,0.4148969,84113.0,84112.0,0.0605]
[1742678260096,0.4148969,84113.0,84112.0,0.0302]
[1742678260295,0.1189203,84105.0,84104.0,0.032]
[1742678260593,0.1196003,84105.0,84104.0,0.032]
[1742678260999,0.3009,84105.0,84104.0,0.032]
[1742678261884,0.31270189,84105.0,84104.0,0.032]
[1742678262593,0.33068501,84105.0,84104.0,0.00443937]
[1742678263485,0.32164915,84105.0,84104.0,0.03453937]
[1742678264896,0.34798454,84105.0,84104.0,0.03453937]
[1742678265100,0.37487535,84105.0,84104.0,0.03453937]
[1742678270595,0.37487535,84105.0,84104.0,0.0301]
[1742678270900,0.34853996,84105.0,84104.0,0.0301]
[1742678271203,0.32164915,84105.0,84104.0,0.0301]
[1742678273795,0.1189246,84102.0,84101.0,0.02439668]
[1742678274000,0.12904001,84102.0,84101.0,0.02439668]
[1742678274200,0.19194001,84102.0,84101.0,0.02439668]
[1742678274403,0.20095775,84102.0,84101.0,0.02439668]
[1742678274704,0.31985745,84102.0,84101.0,0.02439668]
[1742678274899,0.31034205,84102.0,84101.0,0.02507668]
[1742678275203,0.31034205,84102.0,84101.0,0.02439668]
[1742678275397,0.31034205,84102.0,84101.0,0.02507668]
[1742678275599,0.31034205,84102.0,84101.0,0.02439668]
[1742678275904,0.31034205,84102.0,84101.0,0.02507668]
[1742678275905,0.30132431,84102.0,84101.0,0.02507668]
[1742678276104,0.30132431,84102.0,84101.0,0.02439668]
[1742678276306,0.30132431,84102.0,84101.0,0.02511668]
[1742678276606,0.30132431,84102.0,84101.0,0.02439668]
[1742678276992,0.31034675,84102.0,84101.0,0.05579668]
[1742678277193,0.31034675,84102.0,84101.0,0.05647668]
[1742678277994,0.30132431,84102.0,84101.0,0.05647668]
[1742678278896,0.31034829,84102.0,84101.0,0.05647668]
[1742678281403,0.31034829,84102.0,84101.0,0.05579668]
[1742678283902,0.31987677,84102.0,84101.0,0.0192933]
[1742678284198,0.31987677,84102.0,84101.0,0.00251772]
[1742678284398,0.31987756,84102.0,84101.0,0.00183772]
[1742678284908,0.31034829,84102.0,84101.0,0.00183772]
[1742678286193,0.30132431,84102.0,84101.0,0.00183772]
[1742678286805,0.30132431,84102.0,84101.0,0.00251772]
[1742678287107,0.30132431,84102.0,84101.0,0.00183772]
[1742678287308,0.30132431,84102.0,84101.0,0.00255772]
[1742678289507,0.30132431,84102.0,84101.0,0.00183772]
[1742678289807,0.30132431,84102.0,84101.0,0.00068]
[1742678290401,0.118926,84101.0,84100.0,0.0315]
[1742678290796,0.183726,84101.0,84100.0,0.0315]
[1742678291006,0.19408917,84101.0,84100.0,0.0315]
[1742678291211,0.1189274,84100.0,84099.0,0.0308]
[1742678291408,0.12861057,84100.0,84099.0,0.0308]
[1742678291605,0.19341057,84100.0,84099.0,0.0308]
[1742678292103,0.31231592,84100.0,84099.0,0.0308]
[1742678292301,0.32149795,84100.0,84099.0,0.0308]
[1742678293607,0.1189302,84098.0,84097.0,0.0613]
[1742678293910,0.12861337,84098.0,84097.0,0.02411712]
[1742678294113,0.22201223,84098.0,84097.0,0.02411712]
[1742678294406,0.34092182,84098.0,84097.0,0.02411712]
[1742678295013,0.33173979,84098.0,84097.0,0.02411712]
[1742678295900,0.33241979,84098.0,84097.0,0.02479712]
[1742678296911,0.33241979,84098.0,84097.0,0.00068]
[1742678299312,0.33241979,84098.0,84097.0,0.02548]
[1742678299610,0.33241979,84098.0,84097.0,0.00068]
[1742678309028,0.33241979,84098.0,84096.0,0.00017833]
[1742678309029,0.1189317,84097.0,84096.0,0.00017833]
[1742678309222,0.1196517,84097.0,84096.0,0.00089833]
[1742678309422,0.1828517,84097.0,84096.0,0.00089833]
[1742678309820,0.30176129,84097.0,84096.0,0.00089833]
[1742678332123,0.30176129,84097.0,84096.0,0.02569833]
[1742678339642,0.30176129,84097.0,84096.0,0.00089833]
[1742678345041,0.18282959,84097.0,84096.0,0.11983143]
[1742678345240,0.30176129,84097.0,84096.0,0.12763143]
[1742678345440,0.30176129,84097.0,84096.0,0.15243143]
[1742678347142,0.30176129,84097.0,84096.0,0.14463143]
[1742678348734,0.30176129,84097.0,84096.0,0.11983143]
[1742678349547,0.30176129,84097.0,84096.0,0.48063143]
[1742678351445,0.30176129,84097.0,84096.0,0.36169833]
[1742678351850,0.30176129,84097.0,84096.0,0.48063143]
[1742678353145,0.31083271,84097.0,84096.0,0.48063143]
[1742678354343,0.32035491,84097.0,84096.0,0.44344852]
[1742678354532,0.32035491,84097.0,84096.0,0.44404852]
[1742678354737,0.32035498,84097.0,84096.0,0.44404852]
[1742678354931,0.32035498,84097.0,84096.0,0.40686542]
[1742678355448,0.31083271,84097.0,84096.0,0.40686542]
[1742678356145,0.30176129,84097.0,84096.0,0.40686542]
[1742678356342,0.30176129,84097.0,84096.0,0.28793232]
[1742678362144,0.30176129,84097.0,84096.0,0.0006]
[1742678362345,0.30176129,84097.0,84095.0,0.00055565]
[1742678362346,0.1189331,84096.0,84095.0,0.00055565]
[1742678362552,0.1196531,84096.0,84095.0,0.00055565]
[1742678362845,0.1829531,84096.0,84095.0,0.00055565]
[1742678363043,0.30186411,84096.0,84095.0,0.00055565]
[1742678363343,0.30186411,84096.0,84095.0,0.00047565]
[1742678370453,0.18293101,84096.0,84095.0,0.00047565]
[1742678370653,0.18293101,84096.0,84095.0,0.11941015]
[1742678370654,0.30186411,84096.0,84095.0,0.11941015]
[1742678370950,0.30186411,84096.0,84095.0,0.15277015]
[1742678373256,0.30186411,84096.0,84095.0,0.16456896]
[1742678373652,0.30186411,84096.0,84095.0,0.15277015]
[1742678374855,0.30186411,84096.0,84095.0,0.16496456]
[1742678375054,0.30186411,84096.0,84095.0,0.15277015]
[1742678375558,0.31415706,84096.0,84095.0,0.15277015]
[1742678376653,0.31415706,84096.0,84095.0,0.14497015]
[1742678377957,0.31415706,84096.0,84095.0,0.02603565]
[1742678378151,0.31415706,84096.0,84095.0,0.00123565]
[1742678378458,0.31415706,84096.0,84095.0,0.12017015]
[1742678379557,0.31415706,84096.0,84095.0,0.00123565]
[1742678381652,0.31415706,84096.0,84095.0,0.12017015]
[1742678382158,0.31415706,84096.0,84095.0,0.14497015]
[1742678385654,0.31415706,84096.0,84095.0,0.12017015]
[1742678385852,0.31415706,84096.0,84095.0,0.00123565]
[1742678412470,0.31415706,84096.0,84095.0,0.00047565]
[1742678414779,0.31415706,84096.0,84095.0,0.00107565]
[1742678418276,0.31415706,84096.0,84095.0,0.00047565]
[1742678419486,0.31415706,84096.0,84095.0,0.00115565]
[1742678420174,0.31415706,84096.0,84095.0,0.00047565]
[1742678425986,0.31415706,84096.0,84095.0,0.00115565]
[1742678426180,0.31415706,84096.0,84095.0,0.00047565]
[1742678456220,0.42763706,84096.0,84095.0,0.00047565]
[1742678491859,0.42763706,84096.0,84095.0,0.00107565]
[1742678497257,0.42763706,84096.0,84095.0,0.12001015]
[1742678500861,0.42763706,84096.0,84095.0,0.00107565]
[1742678513277,0.42763706,84096.0,84095.0,0.12001015]
[1742678513578,0.42763706,84096.0,84095.0,0.00107565]
[1742678513973,0.42763706,84096.0,84095.0,0.02587565]
[1742678519582,0.42763706,84096.0,84095.0,0.14481015]
[1742678519885,0.42763706,84096.0,84095.0,0.02587565]
[1742678520785,0.42763706,84096.0,84095.0,0.14481015]
[1742678521980,0.42763706,84096.0,84095.0,0.12001015]
[1742678522680,0.42763706,84096.0,84095.0,0.00107565]
[1742678522879,0.42763706,84096.0,84095.0,0.12001015]
[1742678524784,0.42763706,84096.0,84095.0,0.00107565]
[1742678524987,0.42763706,84096.0,84095.0,0.00047565]
[1742678525480,0.36817046,84096.0,84093.0,0.1784045]
[1742678525789,0.1189359,84094.0,84093.0,0.00064]
[1742678525985,0.11981591,84094.0,84093.0,0.00064]
[1742678526181,0.15291591,84094.0,84093.0,0.00064]
[1742678526686,0.27182833,84094.0,84093.0,0.00064]
[1742678528681,0.30352833,84094.0,84093.0,0.00064]
[1742678535292,0.1189387,84092.0,84091.0,0.0078]
[1742678535588,0.11981871,84092.0,84091.0,0.00848]
[1742678535887,0.21341871,84092.0,84091.0,0.00848]
[1742678536094,0.33233679,84092.0,84091.0,0.00848]
[1742678548191,0.33233679,84092.0,84091.0,0.1274201]
[1742678549199,0.33233679,84092.0,84091.0,0.00848]
[1742678592634,0.33233679,84092.0,84091.0,0.1274201]
[1742678592940,0.33233679,84092.0,84091.0,0.00848]
[1742678593331,0.33233679,84092.0,84091.0,0.1274201]
[1742678594746,0.33233679,84092.0,84091.0,0.00848]
[1742678599845,0.33233679,84092.0,84091.0,0.1274201]
[1742678600234,0.33233679,84092.0,84091.0,0.00848]
[1742678601949,0.33233679,84092.0,84091.0,0.1274201]
[1742678602337,0.33233679,84092.0,84091.0,0.00848]
[1742678603246,0.33233679,84092.0,84091.0,0.1274201]
[1742678605250,0.33233679,84092.0,84091.0,0.00848]
[1742678605751,0.33233679,84092.0,84091.0,0.1274201]
[1742678607046,0.33233679,84092.0,84091.0,0.00848]
[1742678608446,0.33233679,84092.0,84091.0,0.36928]
[1742678609049,0.33233679,84092.0,84091.0,0.4882201]
[1742678609345,0.33233679,84092.0,84091.0,0.36928]
[1742678610044,0.33233679,84092.0,84091.0,0.00848]
[1742678610245,0.33233679,84092.0,84091.0,0.36928]
[1742678610447,0.33233679,84092.0,84091.0,0.4882201]
[1742678611358,0.33233679,84092.0,84091.0,0.36928]
[1742678612357,0.33233679,84092.0,84091.0,0.4882201]
[1742678612547,0.33233679,84092.0,84091.0,0.36928]
[1742678615350,0.33233679,84092.0,84091.0,0.4882201]
[1742678615753,0.33233679,84092.0,84091.0,0.36928]
[1742678615952,0.33233679,84092.0,84091.0,0.4882201]
[1742678616547,0.33233679,84092.0,84091.0,0.1274201]
[1742678616753,0.33233679,84092.0,84091.0,0.4882201]
[1742678618764,0.33233679,84092.0,84091.0,0.00848]
[1742678618964,0.33233679,84092.0,84091.0,0.36928]
[1742678622970,0.33233679,84092.0,84091.0,0.4882201]
[1742678623366,0.33233679,84092.0,84091.0,0.1274201]
[1742678623562,0.33233679,84092.0,84091.0,0.4882201]
[1742678623763,0.33233679,84092.0,84091.0,0.1274201]
[1742678623969,0.33233679,84092.0,84091.0,0.4882201]
[1742678626967,0.33233679,84092.0,84091.0,0.1274201]
[1742678627167,0.33233679,84092.0,84091.0,0.4882201]
[1742678627773,0.33233679,84092.0,84091.0,0.1274201]
[1742678628075,0.33233679,84092.0,84091.0,0.4882201]
[1742678628274,0.33233679,84092.0,84091.0,0.36928]
[1742678633268,0.33233679,84092.0,84091.0,0.00848]
[1742678659299,0.118943,84089.0,84088.0,0.00017833]